fUST/lending_fUST_20250718
["ID","MTS","AMOUNT","RATE_DAILY","PERIOD"]
[372884014,1752792642869,-623.43,0.00017043,2]
[372884015,1752792642879,-651.31,0.00017043,2]
[372884016,1752792642890,-460.0,0.00017043,2]
[372884017,1752792642899,-460.0,0.00017043,2]
[372884018,1752792642909,-1119.9,0.00017043,2]
[372884019,1752792642923,-460.0,0.00017043,2]
[372884020,1752792642932,-460.0,0.00017043,2]
[372884021,1752792642943,-460.0,0.00017043,2]
[372884022,1752792642953,-460.0,0.00017043,2]
[372884024,1752792642963,-620.89,0.00017043,2]
[372884025,1752792642972,-460.0,0.00017043,2]
[372884026,1752792642982,-460.0,0.00017043,2]
[372884027,1752792642992,-460.0,0.00017043,2]
[372884028,1752792643002,-460.0,0.00017043,2]
[372884029,1752792643014,-460.0,0.00017043,2]
[372884030,1752792643024,-790.48,0.00017043,2]
[372884031,1752792643033,-709.94,0.00017043,2]
[372884032,1752792643043,-460.0,0.00017043,2]
[372884033,1752792643053,-460.0,0.00017043,2]
[372884034,1752792643063,-460.0,0.00017043,2]
[372884035,1752792643073,-460.0,0.00017043,2]
[372884036,1752792643083,-460.0,0.00017043,2]
[372884037,1752792643094,-460.0,0.00017043,2]
[372884038,1752792643103,-460.0,0.00017043,2]
[372884039,1752792643113,-460.0,0.00017043,2]
[372884040,1752792643123,-604.38,0.00017043,2]
[372884041,1752792643133,-310.64216914,0.00017043,2]
[372884042,1752792643143,-500.0,0.00017043,2]
[372884043,1752792643153,-464.48585198,0.00017044,2]
[372884044,1752792643163,-460.0,0.00017044,2]
[372884046,1752792643175,-460.0,0.00017046,2]
[372884047,1752792643185,-564.38885223,0.00017046,2]
[372884049,1752792643195,-460.0,0.00017046,2]
[372884050,1752792643206,-460.0,0.00017046,2]
[372884051,1752792643217,-460.0,0.00017046,2]
[372884052,1752792643229,-460.0,0.00017046,2]
[372884053,1752792643240,-460.0,0.00017046,2]
[372884054,1752792643250,-491.24,0.00017046,2]
[372884055,1752792643268,-614.19,0.00017046,2]
[372884056,1752792643281,-460.0,0.00017046,2]
[372884057,1752792643292,-4940.94,0.00017046,2]
[372884058,1752792643304,-557.14,0.00017046,2]
[372884059,1752792643314,-853.37,0.00017046,2]
[372884060,1752792643325,-460.0,0.00017046,2]
[372884061,1752792643335,-460.0,0.00017046,2]
[372884062,1752792643345,-460.0,0.00017046,2]
[372884063,1752792643355,-460.0,0.00017046,2]
[372884064,1752792643366,-546.72,0.00017046,2]
[372884065,1752792643501,-460.0,0.00017046,2]
[372884066,1752792643530,-460.0,0.00017047,2]
[372884067,1752792643542,-460.0,0.00017047,2]
[372884068,1752792643552,-460.0,0.00017047,2]
[372884069,1752792643562,-460.0,0.00017047,2]
[372884070,1752792643573,-460.0,0.00017047,2]
[372884071,1752792643582,-460.0,0.00017047,2]
[372884072,1752792643593,-460.0,0.00017047,2]
[372884073,1752792643603,-460.0,0.00017047,2]
[372884074,1752792643613,-460.0,0.00017047,2]
[372884075,1752792643624,-460.0,0.00017047,2]
[372884076,1752792643633,-460.0,0.00017047,2]
[372884077,1752792643643,-460.0,0.00017047,2]
[372884078,1752792643653,-460.0,0.00017047,2]
[372884079,1752792643663,-460.0,0.00017047,2]
[372884080,1752792643672,-460.0,0.00017047,2]
[372884081,1752792643682,-460.0,0.00017047,2]
[372884082,1752792643692,-460.0,0.00017047,2]
[372884083,1752792643701,-460.0,0.00017047,2]
[372884084,1752792643711,-460.0,0.00017047,2]
[372884085,1752792643720,-460.0,0.00017047,2]
[372884086,1752792643730,-460.0,0.00017047,2]
[372884087,1752792643740,-398.12407717,0.00017047,2]
[372884088,1752792643750,-467.83,0.00017047,2]
[372884089,1752792643759,-460.0,0.00017047,2]
[372884090,1752792643772,-460.0,0.00017047,2]
[372884091,1752792643782,-224.22990729,0.00017047,2]
[372884092,1752792643791,-460.0,0.00017047,2]
[372884093,1752792643801,-460.0,0.00017047,2]
[372884094,1752792643811,-460.0,0.00017047,2]
[372884095,1752792643820,-460.0,0.00017047,2]
[372884096,1752792643830,-460.0,0.00017047,2]
[372884097,1752792643840,-460.0,0.00017047,2]
[372884098,1752792643850,-460.0,0.00017047,2]
[372884099,1752792643859,-460.0,0.00017047,2]
[372884100,1752792643869,-460.0,0.00017047,2]
[372884101,1752792643878,-460.0,0.00017047,2]
[372884102,1752792643888,-460.0,0.00017047,2]
[372884103,1752792643897,-577.94,0.00017047,2]
[372884104,1752792643907,-460.0,0.00017047,2]
[372884105,1752792643916,-460.0,0.00017047,2]
[372884106,1752792643926,-460.0,0.00017047,2]
[372884107,1752792643935,-460.0,0.00017047,2]
[372884108,1752792643944,-460.0,0.00017047,2]
[372884109,1752792643954,-460.0,0.00017047,2]
[372884110,1752792643963,-460.0,0.00017047,2]
[372884111,1752792643972,-460.0,0.00017047,2]
[372884112,1752792643982,-174.02728654,0.00017047,2]
[372884113,1752792643991,-460.0,0.00017047,2]
[372884114,1752792644000,-460.0,0.00017047,2]
[372884115,1752792644010,-460.0,0.00017047,2]
[372884116,1752792644021,-460.0,0.00017047,2]
[372884117,1752792644031,-460.0,0.00017047,2]
[372884118,1752792644040,-460.0,0.00017047,2]
[372884119,1752792644050,-460.0,0.00017047,2]
[372884120,1752792644060,-460.0,0.00017047,2]
[372884121,1752792644070,-467.97606816,0.00017047,2]
[372884122,1752792644080,-490.96951478,0.00017047,2]
[372884123,1752792644090,-460.0,0.00017047,2]
[372884124,1752792644099,-460.0,0.00017047,2]
[372884125,1752792644110,-460.0,0.00017047,2]
[372884126,1752792644119,-460.0,0.00017047,2]
[372884127,1752792644129,-460.0,0.00017047,2]
[372884128,1752792644139,-460.0,0.00017047,2]
[372884129,1752792644148,-460.0,0.00017047,2]
[372884130,1752792644157,-460.0,0.00017047,2]
[372884131,1752792644167,-460.0,0.00017047,2]
[372884132,1752792644176,-460.0,0.00017047,2]
[372884133,1752792644187,-1023.54,0.00017047,2]
[372884134,1752792644196,-460.0,0.00017047,2]
[372884135,1752792644206,-460.0,0.00017047,2]
[372884136,1752792644215,-460.0,0.00017047,2]
[372884137,1752792644225,-460.0,0.00017047,2]
[372884138,1752792644235,-460.0,0.00017047,2]
[372884139,1752792644244,-460.0,0.00017047,2]
[372884140,1752792644254,-460.0,0.00017047,2]
[372884141,1752792644267,-460.0,0.00017047,2]
[372884142,1752792644277,-460.0,0.00017047,2]
[372884143,1752792644287,-460.0,0.00017047,2]
[372884144,1752792644296,-460.0,0.00017047,2]
[372884145,1752792644305,-460.0,0.00017047,2]
[372884146,1752792644315,-460.0,0.00017047,2]
[372884147,1752792644324,-460.0,0.00017047,2]
[372884148,1752792644334,-460.0,0.00017047,2]
[372884149,1752792644344,-460.0,0.00017047,2]
[372884150,1752792644354,-460.0,0.00017047,2]
[372884151,1752792644363,-460.0,0.00017047,2]
[372884152,1752792644372,-460.0,0.00017047,2]
[372884153,1752792644382,-460.0,0.00017047,2]
[372884154,1752792644391,-460.0,0.00017047,2]
[372884155,1752792644400,-342.22579245,0.00017047,2]
[372884156,1752792644411,-460.0,0.00017047,2]
[372884157,1752792644420,-460.0,0.00017047,2]
[372884158,1752792644430,-460.0,0.00017048,2]
[372884159,1752792644441,-460.0,0.00017048,2]
[372884160,1752792644451,-460.0,0.00017048,2]
[372884161,1752792644462,-460.0,0.00017048,2]
[372884162,1752792644475,-460.0,0.00017048,2]
[372884163,1752792644485,-500.0,0.00017073,2]
[372884164,1752792644495,-500.0,0.00017073,2]
[372884165,1752792644506,-500.0,0.00017073,2]
[372884166,1752792644523,-500.0,0.00017073,2]
[372884167,1752792644533,-500.88066744,0.00017073,2]
[372884168,1752792644544,-500.0,0.00017073,2]
[372884169,1752792644554,-488.74686382,0.00017073,2]
[372884170,1752792644563,-604.31728,0.00017073,2]
[372884171,1752792644573,-500.0,0.00017073,2]
[372884172,1752792644582,-500.0,0.00017073,2]
[372884173,1752792644591,-501.51029155,0.00017073,2]
[372884174,1752792644601,-500.0,0.00017073,2]
[372884175,1752792644611,-500.0,0.00017073,2]
[372884176,1752792644620,-500.0,0.00017073,2]
[372884177,1752792644630,-506.39072393,0.00017073,2]
[372884178,1752792644639,-500.0,0.00017073,2]
[372884179,1752792644649,-500.0,0.00017181,2]
[372884180,1752792644659,-500.0,0.000172,2]
[372884181,1752792644668,-500.0,0.000172,2]
[372884182,1752792644677,-318.0,0.0001721,2]
[372884183,1752792644687,-283.81891313,0.00017291,2]
[372884184,1752792644696,-460.0,0.00017291,2]
[372884185,1752792644706,-460.0,0.00017291,2]
[372884186,1752792644715,-460.0,0.00017291,2]
[372884187,1752792644724,-460.0,0.00017291,2]
[372884188,1752792644733,-460.0,0.00017291,2]
[372884189,1752792644744,-1285.9,0.00017291,2]
[372884190,1752792644753,-3844.7,0.00017291,2]
[372884191,1752792644765,-460.0,0.00017291,2]
[372884192,1752792644775,-460.0,0.00017292,2]
[372884193,1752792644785,-298.22907856,0.00017293,2]
[372884194,1752792644795,-560.7721542,0.00017293,2]
[372884195,1752792644805,-460.0,0.00017293,2]
[372884196,1752792644815,-460.0,0.00017293,2]
[372884197,1752792644824,-527.56,0.00017293,2]
[372884198,1752792644833,-460.0,0.00017293,2]
[372884199,1752792644843,-465.70059702,0.00017293,2]
[372884200,1752792644853,-460.0,0.00017293,2]
[372884201,1752792644862,-460.0,0.00017293,2]
[372884202,1752792644872,-460.0,0.00017293,2]
[372884203,1752792644882,-461.8888958,0.00017293,2]
[372884204,1752792644892,-460.0,0.00017293,2]
[372884205,1752792644902,-460.0,0.00017293,2]
[372884206,1752792644911,-460.0,0.00017293,2]
[372884207,1752792644921,-154.87130904,0.00017294,2]
[372884208,1752792644931,-460.0,0.00017294,2]
[372884209,1752792644940,-460.0,0.00017294,2]
[372884210,1752792644950,-460.0,0.00017294,2]
[372884211,1752792644960,-460.0,0.00017294,2]
[372884212,1752792644971,-883.0,0.00017294,2]
[372884213,1752792644980,-2390.87,0.00017294,2]
[372884214,1752792644991,-460.0,0.00017294,2]
[372884215,1752792645000,-460.0,0.00017294,2]
[372884216,1752792645010,-460.0,0.00017294,2]
[372884217,1752792645022,-2574.35,0.00017294,2]
[372884218,1752792645031,-460.0,0.00017294,2]
[372884219,1752792645040,-460.0,0.00017294,2]
[372884220,1752792645050,-460.0,0.00017294,2]
[372884221,1752792645059,-460.0,0.00017294,2]
[372884222,1752792645068,-1471.77,0.00017294,2]
[372884223,1752792645079,-155.69,0.00017294,2]
[372884224,1752792645088,-460.0,0.00017294,2]
[372884225,1752792645099,-460.0,0.00017316,2]
[372884226,1752792645109,-460.0,0.00017316,2]
[372884227,1752792645118,-500.0,0.00017317,2]
[372884228,1752792645128,-212.06,0.00017317,2]
[372884229,1752792645137,-460.0,0.00017317,2]
[372884230,1752792645147,-315.52636394,0.00017317,2]
[372884231,1752792645156,-460.0,0.00017317,2]
[372884232,1752792645166,-460.0,0.00017317,2]
[372884233,1752792645176,-460.0,0.00017317,2]
[372884234,1752792645186,-313.47,0.00017317,2]
[372884235,1752792645195,-460.0,0.00017317,2]
[372884236,1752792645204,-460.0,0.00017317,2]
[372884237,1752792645214,-460.0,0.00017317,2]
[372884238,1752792645223,-460.0,0.00017317,2]
[372884239,1752792645234,-205.3792598,0.00017317,2]
[372884240,1752792645245,-460.0,0.00017317,2]
[372884241,1752792645255,-460.0,0.00017317,2]
[372884242,1752792645270,-460.0,0.00017317,2]
[372884243,1752792645282,-460.0,0.00017317,2]
[372884244,1752792645292,-460.0,0.00017317,2]
[372884245,1752792645302,-460.0,0.00017317,2]
[372884246,1752792645312,-558.89,0.00017317,2]
[372884247,1752792645322,-474.22,0.00017317,2]
[372884248,1752792645332,-460.0,0.00017317,2]
[372884249,1752792645342,-539.6831129,0.00017317,2]
[372884250,1752792645351,-460.0,0.00017317,2]
[372884251,1752792645360,-460.0,0.00017317,2]
[372884252,1752792645370,-460.0,0.00017317,2]
[372884253,1752792645379,-509.26,0.00017317,2]
[372884254,1752792645388,-460.0,0.00017317,2]
[372884255,1752792645398,-460.0,0.00017317,2]
[372884256,1752792645408,-504.22,0.00017317,2]
[372884257,1752792645417,-460.0,0.00017317,2]
[372884258,1752792645427,-553.36,0.00017317,2]
[372884259,1752792645436,-220.98,0.00017317,2]
[372884260,1752792645446,-460.0,0.00017317,2]
[372884261,1752792645456,-460.0,0.00017317,2]
[372884263,1752792645469,-460.0,0.00017317,2]
[372884264,1752792645479,-460.0,0.00017317,2]
[372884266,1752792645489,-683.62,0.00017317,2]
[372884267,1752792645499,-460.0,0.00017317,2]
[372884268,1752792645510,-651.31,0.00017317,2]
[372884269,1752792645525,-623.43,0.00017317,2]
[372884270,1752792645535,-460.0,0.00017317,2]
[372884271,1752792645545,-1119.9,0.00017317,2]
[372884272,1752792645556,-448.52880812,0.00017317,2]
[372884273,1752792645565,-460.0,0.00017317,2]
[372884274,1752792645574,-460.0,0.00017317,2]
[372884275,1752792645583,-460.0,0.00017317,2]
[372884276,1752792645593,-620.89,0.00017317,2]
[372884277,1752792645602,-460.0,0.00017317,2]
[372884278,1752792645611,-460.0,0.00017317,2]
[372884279,1752792645621,-460.0,0.00017317,2]
[372884280,1752792645630,-790.48,0.00017317,2]
[372884281,1752792645640,-709.94,0.00017317,2]
[372884282,1752792645649,-460.0,0.00017317,2]
[372884283,1752792645659,-460.0,0.00017317,2]
[372884284,1752792645668,-460.0,0.00017317,2]
[372884285,1752792645678,-460.0,0.00017317,2]
[372884286,1752792645687,-460.0,0.00017317,2]
[372884287,1752792645697,-460.0,0.00017317,2]
[372884288,1752792645706,-460.0,0.00017317,2]
[372884289,1752792645716,-604.38,0.00017317,2]
[372884290,1752792645726,-460.0,0.00017318,2]
[372884291,1752792645735,-460.0,0.0001732,2]
[372884292,1752792645744,-460.0,0.0001732,2]
[372884293,1752792645754,-460.0,0.0001732,2]
[372884294,1752792645769,-301.68404041,0.0001732,2]
[372884295,1752792645778,-460.0,0.0001732,2]
[372884296,1752792645787,-491.24,0.0001732,2]
[372884297,1752792645796,-614.19,0.0001732,2]
[372884299,1752792645805,-460.0,0.0001732,2]
[372884301,1752792645814,-4940.94,0.0001732,2]
[372884302,1752792645823,-557.14,0.0001732,2]
[372884303,1752792645833,-853.37,0.0001732,2]
[372884304,1752792645842,-460.0,0.0001732,2]
[372884305,1752792645851,-460.0,0.0001732,2]
[372884306,1752792645860,-460.0,0.0001732,2]
[372884307,1752792645870,-460.0,0.0001732,2]
[372884308,1752792645879,-546.72,0.0001732,2]
[372884309,1752792645889,-460.0,0.0001732,2]
[372884310,1752792645898,-506.2456732,0.00017321,2]
[372884311,1752792645908,-1082.41468936,0.00017321,2]
[372884312,1752792645917,-459.85765792,0.00017321,2]
[372884313,1752792645927,-1001.05616318,0.00017321,2]
[372884314,1752792645936,-1000.0,0.00017321,2]
[372884315,1752792645945,-1000.33460394,0.00017321,2]
[372884316,1752792645954,-1000.0,0.00017321,2]
[372884317,1752792645963,-508.00352188,0.00017321,2]
[372884318,1752792645973,-525.77011804,0.00017321,2]
[372884320,1752792645982,-504.93958316,0.00017321,2]
[372884321,1752792645991,-1000.0,0.00017321,2]
[372884322,1752792646000,-299.25482571,0.00017321,2]
[372884323,1752792646009,-630.67217901,0.00017321,2]
[372884324,1752792646025,-989.52497536,0.00017321,2]
[372884325,1752792646034,-500.0,0.00017321,2]
[372884326,1752792646043,-1000.0,0.00017321,2]
[372884327,1752792646052,-500.0,0.00017321,2]
[372884328,1752792646061,-357.31698797,0.00017321,2]
[372884329,1752792646070,-1000.0,0.00017321,2]
[372884331,1752792646079,-500.95725856,0.00017321,2]
[372884333,1752792646088,-1000.0,0.00017321,2]
[372884334,1752792646097,-1000.0,0.00017321,2]
[372884335,1752792646106,-500.0,0.00017321,2]
[372884336,1752792646214,-460.0,0.00017321,2]
[372884337,1752792646224,-460.0,0.00017321,2]
[372884338,1752792646234,-460.0,0.00017321,2]
[372884339,1752792646243,-460.0,0.00017321,2]
[372884340,1752792646253,-460.0,0.00017321,2]
[372884341,1752792646266,-460.0,0.00017321,2]
[372884342,1752792646276,-460.0,0.00017321,2]
[372884343,1752792646285,-460.0,0.00017321,2]
[372884344,1752792646294,-406.74854944,0.00017321,2]
[372884345,1752792646303,-460.0,0.00017321,2]
[372884346,1752792646313,-460.0,0.00017321,2]
[372884347,1752792646322,-460.0,0.00017321,2]
[372884348,1752792646331,-460.0,0.00017321,2]
[372884349,1752792646341,-460.0,0.00017321,2]
[372884350,1752792646350,-460.0,0.00017321,2]
[372884351,1752792646360,-467.83,0.00017321,2]
[372884352,1752792646370,-460.0,0.00017321,2]
[372884353,1752792646380,-460.0,0.00017321,2]
[372884354,1752792646390,-460.0,0.00017321,2]
[372884355,1752792646400,-460.0,0.00017321,2]
[372884356,1752792646410,-460.0,0.00017321,2]
[372884357,1752792646419,-460.0,0.00017321,2]
[372884358,1752792646429,-460.0,0.00017321,2]
[372884359,1752792646438,-460.0,0.00017321,2]
[372884360,1752792646448,-460.0,0.00017321,2]
[372884361,1752792646459,-465.70627507,0.00017321,2]
[372884362,1752792646470,-460.0,0.00017321,2]
[372884363,1752792646480,-577.94,0.00017321,2]
[372884364,1752792646489,-460.0,0.00017321,2]
[372884365,1752792646499,-460.0,0.00017321,2]
[372884366,1752792646509,-460.0,0.00017321,2]
[372884367,1752792646524,-460.0,0.00017321,2]
[372884368,1752792646533,-460.0,0.00017321,2]
[372884369,1752792646543,-460.0,0.00017321,2]
[372884370,1752792646553,-460.0,0.00017321,2]
[372884371,1752792646564,-460.0,0.00017321,2]
[372884372,1752792646574,-460.0,0.00017321,2]
[372884373,1752792646583,-434.33533168,0.00017321,2]
[372884374,1752792646592,-460.0,0.00017321,2]
[372884375,1752792646602,-323.00488244,0.00017321,2]
[372884376,1752792646611,-460.0,0.00017321,2]
[372884377,1752792646621,-460.0,0.00017321,2]
[372884378,1752792646630,-460.0,0.00017321,2]
[372884379,1752792646639,-460.0,0.00017321,2]
[372884380,1752792646649,-460.0,0.00017321,2]
[372884381,1752792646658,-460.0,0.00017321,2]
[372884382,1752792646667,-460.0,0.00017321,2]
[372884383,1752792646677,-460.0,0.00017321,2]
[372884384,1752792646686,-1023.54,0.00017321,2]
[372884385,1752792646696,-460.0,0.00017321,2]
[372884386,1752792646705,-460.0,0.00017321,2]
[372884387,1752792646714,-460.0,0.00017321,2]
[372884388,1752792646724,-460.0,0.00017321,2]
[372884389,1752792646733,-460.0,0.00017321,2]
[372884390,1752792646742,-460.0,0.00017321,2]
[372884391,1752792646752,-460.0,0.00017321,2]
[372884392,1752792646762,-460.0,0.00017321,2]
[372884393,1752792646772,-460.0,0.00017321,2]
[372884394,1752792646782,-460.0,0.00017321,2]
[372884395,1752792646791,-460.0,0.00017321,2]
[372884396,1752792646800,-466.32,0.00017321,2]
[372884397,1752792646810,-460.0,0.00017321,2]
[372884398,1752792646819,-460.0,0.00017321,2]
[372884399,1752792646829,-460.0,0.00017321,2]
[372884400,1752792646838,-460.0,0.00017321,2]
[372884401,1752792646848,-460.0,0.00017322,2]
[372884402,1752792646857,-460.0,0.00017322,2]
[372884403,1752792646867,-460.0,0.00017322,2]
[372884404,1752792646877,-460.0,0.00017322,2]
[372884405,1752792646887,-460.0,0.00017322,2]
[372884406,1752792646896,-375.34814708,0.00017369,2]
[372884407,1752792646905,-500.0,0.00017373,2]
[372884408,1752792646915,-500.0,0.00017373,2]
[372884409,1752792646924,-500.0,0.00017373,2]
[372884410,1752792646934,-500.0,0.00017373,2]
[372884411,1752792646943,-500.0,0.00017373,2]
[372884412,1752792646953,-500.0,0.00017373,2]
[372884413,1752792646962,-500.0,0.00017373,2]
[372884414,1752792646972,-500.0,0.00017373,2]
[372884415,1752792646981,-500.0,0.00017373,2]
[372884416,1752792646990,-500.0,0.00017373,2]
[372884417,1752792646999,-502.33311944,0.00017373,2]
[372884418,1752792647009,-500.0,0.00017373,2]
[372884419,1752792647021,-170.81692496,0.00017373,2]
[372884420,1752792647033,-500.0,0.00017373,2]
[372884421,1752792647042,-500.0,0.00017543,2]
[372884422,1752792647051,-460.0,0.00017565,2]
[372884423,1752792647061,-460.0,0.00017565,2]
[372884424,1752792647070,-460.0,0.00017565,2]
[372884425,1752792647079,-460.0,0.00017565,2]
[372884426,1752792647088,-1285.9,0.00017565,2]
[372884427,1752792647098,-3844.7,0.00017565,2]
[372884428,1752792647107,-460.0,0.00017565,2]
[372884429,1752792647117,-489.73626239,0.00017567,2]
[372884430,1752792647126,-460.0,0.00017567,2]
[372884431,1752792647135,-460.0,0.00017567,2]
[372884432,1752792647144,-460.0,0.00017567,2]
[372884433,1752792647153,-565.75,0.00017567,2]
[372884434,1752792647163,-460.0,0.00017567,2]
[372884435,1752792647172,-460.0,0.00017567,2]
[372884436,1752792647182,-460.0,0.00017567,2]
[372884437,1752792647192,-460.0,0.00017568,2]
[372884438,1752792647202,-460.0,0.00017568,2]
[372884439,1752792647212,-460.0,0.00017568,2]
[372884440,1752792647221,-460.0,0.00017568,2]
[372884441,1752792647231,-883.0,0.00017568,2]
[372884442,1752792647240,-2390.87,0.00017568,2]
[372884443,1752792647250,-460.0,0.00017568,2]
[372884444,1752792647259,-460.0,0.00017568,2]
[372884445,1752792647272,-2574.35,0.00017568,2]
[372884446,1752792647282,-460.0,0.00017568,2]
[372884447,1752792647291,-348.35026998,0.00017568,2]
[372884448,1752792647301,-460.0,0.00017568,2]
[372884449,1752792647311,-1471.77,0.00017568,2]
[372884450,1752792647320,-460.0,0.00017568,2]
[372884451,1752792647330,-1500.0,0.00017568,2]
[372884452,1752792647339,-1500.0,0.00017568,2]
[372884453,1752792647348,-460.0,0.0001759,2]
[372884454,1752792647358,-456.6234479,0.0001759,2]
[372884455,1752792647369,-420.6220422,0.00017591,2]
[372884456,1752792647379,-460.0,0.00017591,2]
[372884457,1752792647389,-460.0,0.00017591,2]
[372884458,1752792647399,-460.0,0.00017591,2]
[372884459,1752792647409,-460.0,0.00017591,2]
[372884460,1752792647418,-587.28626161,0.00017591,2]
[372884461,1752792647427,-460.0,0.00017591,2]
[372884462,1752792647438,-460.0,0.00017591,2]
[372884463,1752792647450,-460.0,0.00017591,2]
[372884464,1752792647460,-460.0,0.00017591,2]
[372884465,1752792647473,-460.0,0.00017591,2]
[372884466,1752792647482,-460.0,0.00017591,2]
[372884467,1752792647492,-460.0,0.00017591,2]
[372884468,1752792647504,-558.89,0.00017591,2]
[372884469,1752792647516,-460.0,0.00017591,2]
[372884470,1752792647526,-460.0,0.00017591,2]
[372884471,1752792647535,-460.0,0.00017591,2]
[372884472,1752792647545,-460.0,0.00017591,2]
[372884473,1752792647555,-509.26,0.00017591,2]
[372884474,1752792647565,-460.0,0.00017591,2]
[372884475,1752792647574,-504.22,0.00017591,2]
[372884476,1752792647583,-460.0,0.00017591,2]
[372884477,1752792647593,-553.36,0.00017591,2]
[372884478,1752792647602,-460.0,0.00017591,2]
[372884479,1752792647611,-196.04,0.00017591,2]
[372884480,1752792647621,-460.0,0.00017591,2]
[372884481,1752792647630,-460.0,0.00017591,2]
[372884482,1752792647639,-683.62,0.00017591,2]
[372884483,1752792647649,-460.0,0.00017591,2]
[372884484,1752792647658,-651.31,0.00017591,2]
[372884485,1752792647668,-623.43,0.00017591,2]
[372884486,1752792647679,-460.0,0.00017591,2]
[372884487,1752792647689,-1119.9,0.00017591,2]
[372884488,1752792647698,-460.0,0.00017591,2]
[372884489,1752792647709,-620.89,0.00017591,2]
[372884490,1752792647719,-460.0,0.00017591,2]
[372884491,1752792647728,-460.0,0.00017591,2]
[372884492,1752792647738,-460.0,0.00017591,2]
[372884493,1752792647747,-790.48,0.00017591,2]
[372884494,1752792647757,-709.94,0.00017591,2]
[372884495,1752792647768,-460.0,0.00017591,2]
[372884496,1752792647778,-460.0,0.00017591,2]
[372884497,1752792647787,-460.0,0.00017591,2]
[372884498,1752792647797,-460.0,0.00017591,2]
[372884499,1752792647806,-460.0,0.00017591,2]
[372884500,1752792647815,-604.38,0.00017591,2]
[372884501,1752792647825,-460.0,0.00017592,2]
[372884502,1752792647834,-460.0,0.00017594,2]
[372884503,1752792647843,-460.0,0.00017594,2]
[372884504,1752792647852,-460.0,0.00017594,2]
[372884505,1752792647862,-518.93788665,0.00017594,2]
[372884506,1752792647871,-491.24,0.00017594,2]
[372884507,1752792647882,-614.19,0.00017594,2]
[372884508,1752792647891,-460.0,0.00017594,2]
[372884509,1752792647900,-4940.94,0.00017594,2]
[372884510,1752792647910,-557.14,0.00017594,2]
[372884511,1752792647919,-853.37,0.00017594,2]
[372884512,1752792647928,-460.0,0.00017594,2]
[372884513,1752792647938,-460.0,0.00017594,2]
[372884514,1752792647947,-460.0,0.00017594,2]
[372884515,1752792647957,-460.0,0.00017594,2]
[372884516,1752792647966,-546.72,0.00017594,2]
[372884517,1752792647976,-460.0,0.00017594,2]
[372884518,1752792647986,-436.77953884,0.00017595,2]
[372884519,1752792647995,-460.0,0.00017595,2]
[372884520,1752792648005,-460.0,0.00017595,2]
[372884521,1752792648014,-460.0,0.00017595,2]
[372884522,1752792648023,-460.0,0.00017595,2]
[372884523,1752792648033,-460.0,0.00017595,2]